fUST/lending_fUST_20241124
["ID","MTS","AMOUNT","RATE_DAILY","PERIOD"]
[343201204,1732441832999,-151.0,0.000188,2]
[343201205,1732441833011,-151.0,0.000189,2]
[343201206,1732441833023,-1166.65291942,0.00018903,2]
[343201207,1732441833034,-293.27,0.00018968,2]
[343201208,1732441833044,-153.8923971,0.00019014,2]
[343201209,1732441833054,-153.0,0.00019014,2]
[343201210,1732441833073,-153.0,0.00019014,2]
[343201211,1732441833083,-150.338,0.00019032,2]
[343201212,1732441833094,-531.983,0.00019032,2]
[343201213,1732441833104,-1107.0,0.00019032,2]
[343201214,1732441833116,-2351.0,0.00019032,2]
[343201215,1732441833128,-500.000001,0.00019088,2]
[343201216,1732441833140,-151.0,0.000191,2]
[343201217,1732441833155,-151.0,0.000191,2]
[343201218,1732441833166,-3512.2870285,0.00019177,2]
[343201219,1732441833179,-206.29608172,0.00019177,2]
[343201220,1732441833189,-500.0,0.00019178,2]
[343201221,1732441833199,-500.0,0.00019178,2]
[343201222,1732441833210,-500.0,0.00019178,2]
[343201223,1732441833220,-500.81079007,0.00019178,2]
[343201224,1732441833231,-250.40764344,0.00019178,2]
[343201225,1732441833242,-500.46320747,0.00019178,2]
[343201226,1732441833255,-506.02685587,0.00019178,2]
[343201227,1732441833265,-415.57712338,0.00019178,2]
[343201228,1732441833277,-500.54009319,0.00019178,2]
[343201229,1732441833288,-504.7909356,0.00019178,2]
[343201230,1732441833299,-500.0,0.00019178,2]
[343201231,1732441833311,-506.38940702,0.00019178,2]
[343201232,1732441833322,-245.36357519,0.00019178,2]
[343201233,1732441833332,-500.0,0.00019178,2]
[343201234,1732441833343,-500.0,0.00019178,2]
[343201235,1732441833354,-501.32105648,0.00019178,2]
[343201236,1732441833364,-500.60475602,0.00019178,2]
[343201237,1732441833375,-197.2417706,0.00019178,2]
[343201238,1732441833386,-501.12603002,0.00019178,2]
[343201239,1732441833397,-500.60131174,0.00019178,2]
[343201240,1732441833408,-506.4617864,0.00019178,2]
[343201241,1732441833419,-503.145652,0.00019178,2]
[343201242,1732441833429,-501.99434805,0.00019178,2]
[343201243,1732441833440,-501.0725867,0.00019178,2]
[343201244,1732441833450,-509.08614862,0.00019178,2]
[343201245,1732441833460,-501.99976353,0.00019178,2]
[343201246,1732441833471,-500.70711243,0.00019178,2]
[343201247,1732441833482,-501.29267366,0.00019178,2]
[343201248,1732441833493,-501.04550085,0.00019178,2]
[343201249,1732441833504,-504.28930803,0.00019178,2]
[343201250,1732441833514,-151.0,0.00019178,2]
[343201251,1732441833525,-501.93758609,0.00019178,2]
[343201252,1732441833535,-502.21588089,0.00019178,2]
[343201253,1732441833545,-151.0,0.00019178,2]
[343201254,1732441833558,-500.0,0.00019178,2]
[343201255,1732441833569,-502.81680725,0.00019178,2]
[343201256,1732441833579,-524.52434839,0.00019178,2]
[343201257,1732441833590,-500.0,0.00019178,2]
[343201258,1732441833601,-506.93553903,0.00019178,2]
[343201259,1732441833612,-502.30952588,0.00019178,2]
[343201260,1732441833622,-501.11141688,0.00019178,2]
[343201261,1732441833632,-500.85297699,0.00019178,2]
[343201262,1732441833642,-151.0,0.00019178,2]
[343201263,1732441833653,-501.49864286,0.00019178,2]
[343201264,1732441833664,-546.13648654,0.00019178,2]
[343201265,1732441833675,-500.41751633,0.00019178,2]
[343201266,1732441833686,-500.0,0.00019178,2]
[343201267,1732441833696,-170.456559,0.00019178,2]
[343201268,1732441833707,-170.456559,0.00019178,2]
[343201269,1732441833718,-500.0,0.00019178,2]
[343201270,1732441833729,-500.0,0.00019178,2]
[343201271,1732441833740,-500.0,0.00019178,2]
[343201272,1732441833750,-500.0,0.00019178,2]
[343201273,1732441833760,-500.0,0.00019178,2]
[343201274,1732441833771,-151.0,0.00019178,2]
[343201275,1732441833782,-151.0,0.00019178,2]
[343201276,1732441833792,-151.0,0.00019178,2]
[343201277,1732441833802,-151.0,0.00019178,2]
[343201278,1732441833814,-500.0,0.00019178,2]
[343201279,1732441833825,-151.0,0.00019178,2]
[343201280,1732441833837,-500.0,0.00019178,2]
[343201281,1732441833848,-500.0,0.00019178,2]
[343201282,1732441833863,-500.0,0.00019178,2]
[343201283,1732441833873,-607.09,0.00019178,2]
[343201284,1732441833884,-1295.11,0.00019178,2]
[343201285,1732441833895,-500.0,0.00019178,2]
[343201286,1732441833906,-169.448064,0.00019178,2]
[343201287,1732441833917,-1676.501919,0.00019178,2]
[343201288,1732441833928,-169.448064,0.00019178,2]
[343201289,1732441833939,-1676.501919,0.00019178,2]
[343201290,1732441833950,-2745.327165,0.00019178,2]
[343201291,1732441833960,-2745.327165,0.00019178,2]
[343201292,1732441833971,-320.052035,0.00019178,2]
[343201293,1732441833983,-320.052035,0.00019178,2]
[343201294,1732441834001,-500.0,0.00019178,2]
[343201295,1732441834012,-151.0,0.00019178,2]
[343201296,1732441834023,-307.878896,0.00019178,2]
[343201297,1732441834034,-500.0,0.00019178,2]
[343201298,1732441834045,-151.0,0.00019178,2]
[343201299,1732441834056,-500.0,0.00019178,2]
[343201300,1732441834066,-500.0,0.00019178,2]
[343201301,1732441834077,-307.878896,0.00019178,2]
[343201302,1732441834088,-500.0,0.00019178,2]
[343201303,1732441834099,-202.31772084,0.00019178,2]
[343201304,1732441834109,-789.39,0.00019178,2]
[343201305,1732441834121,-564.572357,0.00019178,2]
[343201306,1732441834131,-500.0,0.00019178,2]
[343201307,1732441834142,-500.0,0.00019178,2]
[343201308,1732441834153,-500.0,0.00019178,2]
[343201309,1732441834164,-500.0,0.00019178,2]
[343201310,1732441834368,-500.0,0.00019178,2]
[343201311,1732441834379,-500.0,0.00019178,2]
[343201312,1732441834389,-500.0,0.00019178,2]
[343201313,1732441834398,-500.0,0.00019178,2]
[343201314,1732441834408,-349.21250136,0.00019178,2]
[343201315,1732441834418,-500.0,0.00019178,2]
[343201316,1732441834428,-500.0,0.00019178,2]
[343201317,1732441834437,-500.0,0.00019178,2]
[343201318,1732441834447,-500.0,0.00019178,2]
[343201319,1732441834457,-500.0,0.00019178,2]
[343201320,1732441834466,-579.13,0.00019178,2]
[343201321,1732441834476,-500.0,0.00019178,2]
[343201322,1732441834486,-500.0,0.00019178,2]
[343201323,1732441834496,-500.0,0.00019178,2]
[343201324,1732441834506,-151.0,0.00019178,2]
[343201325,1732441834516,-500.0,0.00019178,2]
[343201326,1732441834525,-500.0,0.00019178,2]
[343201327,1732441834535,-2307.779249,0.00019178,2]
[343201328,1732441834545,-299.42422,0.00019178,2]
[343201329,1732441834554,-2307.779249,0.00019178,2]
[343201330,1732441834570,-500.0,0.00019178,2]
[343201331,1732441834580,-151.0,0.00019178,2]
[343201332,1732441834590,-299.42422,0.00019178,2]
[343201333,1732441834601,-176.546039,0.00019178,2]
[343201334,1732441834611,-382.327811,0.00019178,2]
[343201335,1732441834622,-382.327811,0.00019178,2]
[343201336,1732441834632,-500.0,0.00019178,2]
[343201337,1732441834641,-151.0,0.00019178,2]
[343201338,1732441834652,-151.0,0.00019178,2]
[343201339,1732441834661,-500.0,0.00019178,2]
[343201340,1732441834671,-492.16636061,0.00019178,2]
[343201341,1732441834681,-500.0,0.00019178,2]
[343201342,1732441834691,-500.0,0.00019178,2]
[343201343,1732441834701,-1218.066645,0.00019178,2]
[343201344,1732441834710,-1218.066645,0.00019178,2]
[343201345,1732441834723,-500.0,0.00019178,2]
[343201346,1732441834732,-500.0,0.00019178,2]
[343201347,1732441834742,-151.0,0.00019178,2]
[343201348,1732441834751,-511.66576706,0.00019178,2]
[343201349,1732441834761,-1534.562321,0.00019178,2]
[343201350,1732441834772,-215.027274,0.00019178,2]
[343201351,1732441834781,-1534.562321,0.00019178,2]
[343201352,1732441834791,-683.05,0.00019178,2]
[343201353,1732441834801,-215.027274,0.00019178,2]
[343201354,1732441834813,-500.0,0.00019178,2]
[343201355,1732441834823,-760.49,0.00019178,2]
[343201356,1732441834833,-563.1517013,0.00019178,2]
[343201357,1732441834843,-500.0,0.00019178,2]
[343201358,1732441834854,-916.04,0.00019178,2]
[343201359,1732441834864,-151.0,0.00019178,2]
[343201360,1732441834873,-151.0,0.00019178,2]
[343201361,1732441834883,-500.0,0.00019178,2]
[343201362,1732441834893,-201.863933,0.00019178,2]
[343201363,1732441834903,-500.0,0.00019178,2]
[343201364,1732441834912,-201.863933,0.00019178,2]
[343201365,1732441834921,-151.0,0.00019178,2]
[343201366,1732441834931,-158.164435,0.00019178,2]
[343201367,1732441834940,-666.7,0.00019178,2]
[343201368,1732441834950,-500.0,0.00019178,2]
[343201369,1732441834959,-1295.3,0.00019178,2]
[343201370,1732441834968,-500.0,0.00019178,2]
[343201371,1732441834978,-1101.151481,0.00019178,2]
[343201372,1732441834989,-2534.40625,0.00019178,2]
[343201373,1732441835001,-500.0,0.00019178,2]
[343201374,1732441835011,-2534.40625,0.00019178,2]
[343201375,1732441835021,-1101.151481,0.00019178,2]
[343201376,1732441835031,-2063.86,0.00019178,2]
[343201377,1732441835041,-500.0,0.00019178,2]
[343201378,1732441835050,-151.0,0.00019178,2]
[343201379,1732441835061,-812.07,0.00019178,2]
[343201380,1732441835073,-962.412136,0.00019178,2]
[343201381,1732441835083,-568.07,0.00019178,2]
[343201382,1732441835092,-500.0,0.00019178,2]
[343201383,1732441835101,-151.0,0.00019178,2]
[343201384,1732441835113,-500.0,0.00019178,2]
[343201385,1732441835122,-262.98155285,0.00019178,2]
[343201386,1732441835132,-962.412136,0.00019178,2]
[343201387,1732441835141,-151.0,0.00019178,2]
[343201388,1732441835150,-1571.29,0.00019178,2]
[343201389,1732441835160,-503.87,0.00019178,2]
[343201390,1732441835170,-665.32,0.00019178,2]
[343201391,1732441835179,-514.4515801,0.00019178,2]
[343201392,1732441835188,-374.406418,0.00019178,2]
[343201393,1732441835197,-500.0,0.00019178,2]
[343201394,1732441835207,-507.72208987,0.00019178,2]
[343201395,1732441835216,-374.406418,0.00019178,2]
[343201396,1732441835226,-500.0,0.00019178,2]
[343201397,1732441835236,-500.0,0.00019178,2]
[343201398,1732441835245,-508.15634637,0.00019178,2]
[343201399,1732441835254,-151.0,0.00019178,2]
[343201400,1732441835264,-773.98,0.00019178,2]
[343201401,1732441835274,-500.0,0.00019178,2]
[343201402,1732441835283,-310.593546,0.00019178,2]
[343201403,1732441835292,-310.593546,0.00019178,2]
[343201404,1732441835302,-500.0,0.00019178,2]
[343201405,1732441835313,-500.0,0.00019178,2]
[343201406,1732441835323,-1232.21,0.00019178,2]
[343201407,1732441835332,-500.0,0.00019178,2]
[343201408,1732441835341,-9786.61,0.00019178,2]
[343201409,1732441835352,-1341.043763,0.00019178,2]
[343201410,1732441835362,-500.0,0.00019178,2]
[343201411,1732441835372,-1166.37,0.00019178,2]
[343201412,1732441835381,-168.166534,0.00019178,2]
[343201413,1732441835391,-1341.043763,0.00019178,2]
[343201414,1732441835401,-500.0,0.00019178,2]
[343201415,1732441835411,-500.0,0.00019178,2]
[343201416,1732441835422,-168.166534,0.00019178,2]
[343201417,1732441835432,-373.30982,0.00019178,2]
[343201418,1732441835442,-164.556448,0.00019178,2]
[343201419,1732441835452,-151.0,0.000192,2]
[343201420,1732441835463,-1166.65291942,0.00019265,2]
[343201421,1732441835473,-151.0,0.000193,2]
[343201422,1732441835483,-151.0,0.000194,2]
[343201423,1732441835493,-151.0,0.00019452,2]
[343201424,1732441835503,-190.158834,0.00019452,2]
[343201425,1732441835513,-151.0,0.00019452,2]
[343201426,1732441835523,-151.0,0.00019452,2]
[343201427,1732441835532,-500.0,0.00019452,2]
[343201428,1732441835542,-500.0,0.00019452,2]
[343201429,1732441835552,-500.0,0.00019452,2]
[343201430,1732441835564,-500.0,0.00019452,2]
[343201431,1732441835574,-500.0,0.00019452,2]
[343201432,1732441835583,-500.0,0.00019452,2]
[343201433,1732441835593,-151.0,0.00019452,2]
[343201434,1732441835602,-189.134957,0.00019452,2]
[343201435,1732441835612,-189.134957,0.00019452,2]
[343201436,1732441835621,-151.0,0.00019452,2]
[343201437,1732441835632,-151.0,0.00019452,2]
[343201438,1732441835642,-500.0,0.00019452,2]
[343201439,1732441835652,-212.32321,0.00019452,2]
[343201440,1732441835661,-500.0,0.00019452,2]
[343201441,1732441835671,-170.456559,0.00019452,2]
[343201442,1732441835681,-170.456559,0.00019452,2]
[343201443,1732441835691,-500.0,0.00019452,2]
[343201444,1732441835701,-151.0,0.00019452,2]
[343201445,1732441835711,-151.0,0.00019452,2]
[343201446,1732441835720,-151.0,0.00019452,2]
[343201447,1732441835730,-500.0,0.00019452,2]
[343201448,1732441835740,-500.0,0.00019452,2]
[343201449,1732441835750,-500.0,0.00019452,2]
[343201450,1732441835760,-500.0,0.00019452,2]
[343201451,1732441835771,-151.0,0.00019452,2]
[343201452,1732441835781,-151.0,0.00019452,2]
[343201453,1732441835791,-151.0,0.00019452,2]
[343201454,1732441835800,-151.0,0.00019452,2]
[343201455,1732441835813,-151.0,0.00019452,2]
[343201456,1732441835823,-151.0,0.00019452,2]
[343201457,1732441835832,-151.0,0.00019452,2]
[343201458,1732441835842,-161.850582,0.00019452,2]
[343201459,1732441835851,-500.0,0.00019452,2]
[343201460,1732441835861,-151.0,0.00019452,2]
[343201461,1732441835871,-151.0,0.00019452,2]
[343201462,1732441835880,-500.0,0.00019452,2]
[343201463,1732441835890,-500.0,0.00019452,2]
[343201464,1732441835900,-500.0,0.00019452,2]
[343201465,1732441835910,-607.09,0.00019452,2]
[343201466,1732441835919,-1295.11,0.00019452,2]
[343201467,1732441835929,-311.31053921,0.00019452,2]
[343201468,1732441835939,-169.448064,0.00019452,2]
[343201469,1732441835948,-169.448064,0.00019452,2]
[343201470,1732441835958,-1676.501919,0.00019452,2]
[343201471,1732441835969,-1676.501919,0.00019452,2]
[343201472,1732441835979,-169.448064,0.00019452,2]
[343201473,1732441835989,-169.448064,0.00019452,2]
[343201474,1732441836003,-1676.501919,0.00019452,2]
[343201475,1732441836012,-1676.501919,0.00019452,2]
[343201476,1732441836022,-2745.327165,0.00019452,2]
[343201477,1732441836034,-2745.327165,0.00019452,2]
[343201478,1732441836043,-2745.327165,0.00019452,2]
[343201479,1732441836053,-2745.327165,0.00019452,2]
[343201480,1732441836065,-320.052035,0.00019452,2]
[343201481,1732441836075,-320.052035,0.00019452,2]
[343201482,1732441836086,-320.052035,0.00019452,2]
[343201483,1732441836096,-320.052035,0.00019452,2]
[343201484,1732441836107,-500.0,0.00019452,2]
[343201485,1732441836116,-151.0,0.00019452,2]
[343201486,1732441836125,-151.0,0.00019452,2]
[343201487,1732441836136,-307.878896,0.00019452,2]
[343201488,1732441836146,-307.878896,0.00019452,2]
[343201489,1732441836156,-500.0,0.00019452,2]
[343201490,1732441836165,-151.0,0.00019452,2]
[343201491,1732441836175,-151.0,0.00019452,2]
[343201492,1732441836184,-500.0,0.00019452,2]
[343201493,1732441836193,-307.878896,0.00019452,2]
[343201494,1732441836202,-307.878896,0.00019452,2]
[343201495,1732441836211,-500.0,0.00019452,2]
[343201496,1732441836221,-789.39,0.00019452,2]
[343201497,1732441836231,-564.572357,0.00019452,2]
[343201498,1732441836241,-564.572357,0.00019452,2]
[343201499,1732441836250,-500.0,0.00019452,2]
[343201500,1732441836260,-500.0,0.00019452,2]
[343201501,1732441836270,-500.0,0.00019452,2]
[343201502,1732441836279,-500.0,0.00019452,2]
[343201503,1732441836288,-500.0,0.00019452,2]
[343201504,1732441836298,-500.0,0.00019452,2]
[343201505,1732441836310,-151.0,0.00019452,2]
[343201506,1732441836320,-151.0,0.00019452,2]
[343201507,1732441836331,-151.0,0.00019452,2]
[343201508,1732441836341,-151.0,0.00019452,2]
[343201509,1732441836349,-500.0,0.00019452,2]
[343201510,1732441836359,-500.0,0.00019452,2]
[343201511,1732441836369,-500.0,0.00019452,2]
[343201512,1732441836378,-500.0,0.00019452,2]
[343201513,1732441836388,-500.0,0.00019452,2]
[343201514,1732441836398,-553.46730302,0.00019452,2]
[343201515,1732441836407,-500.0,0.00019452,2]
[343201516,1732441836417,-579.13,0.00019452,2]
[343201517,1732441836427,-500.0,0.00019452,2]
[343201518,1732441836436,-500.0,0.00019452,2]
[343201519,1732441836445,-500.0,0.00019452,2]
[343201520,1732441836454,-151.0,0.00019452,2]
[343201521,1732441836463,-209.721867,0.00019452,2]
[343201522,1732441836472,-336.79654869,0.00019452,2]
[343201523,1732441836481,-500.0,0.00019452,2]
[343201524,1732441836491,-2307.779249,0.00019452,2]
[343201525,1732441836499,-2307.779249,0.00019452,2]
[343201526,1732441836508,-299.42422,0.00019452,2]
[343201527,1732441836518,-299.42422,0.00019452,2]
[343201528,1732441836528,-2307.779249,0.00019452,2]
[343201529,1732441836537,-2307.779249,0.00019452,2]
[343201530,1732441836547,-500.0,0.00019452,2]
[343201531,1732441836556,-151.0,0.00019452,2]
[343201532,1732441836568,-151.0,0.00019452,2]
[343201533,1732441836578,-299.42422,0.00019452,2]
[343201534,1732441836587,-299.42422,0.00019452,2]
[343201535,1732441836596,-176.546039,0.00019452,2]
[343201536,1732441836606,-176.546039,0.00019452,2]
[343201537,1732441836615,-382.327811,0.00019452,2]
[343201538,1732441836624,-382.327811,0.00019452,2]
[343201539,1732441836634,-382.327811,0.00019452,2]
[343201540,1732441836643,-382.327811,0.00019452,2]
[343201541,1732441836653,-500.0,0.00019452,2]
[343201542,1732441836662,-151.0,0.00019452,2]
[343201543,1732441836672,-151.0,0.00019452,2]
[343201544,1732441836681,-151.0,0.00019452,2]
[343201545,1732441836690,-151.0,0.00019452,2]
[343201546,1732441836700,-500.0,0.00019452,2]
[343201547,1732441836716,-500.0,0.00019452,2]
[343201548,1732441836727,-500.0,0.00019452,2]
[343201549,1732441836736,-1218.066645,0.00019452,2]
[343201550,1732441836746,-1218.066645,0.00019452,2]
[343201551,1732441836756,-1218.066645,0.00019452,2]
[343201552,1732441836766,-1218.066645,0.00019452,2]
[343201553,1732441836775,-500.0,0.00019452,2]
[343201554,1732441836784,-500.0,0.00019452,2]
[343201555,1732441836793,-151.0,0.00019452,2]
[343201556,1732441836803,-151.0,0.00019452,2]
[343201557,1732441836816,-1534.562321,0.00019452,2]
[343201558,1732441836826,-1534.562321,0.00019452,2]
[343201559,1732441836836,-215.027274,0.00019452,2]
[343201560,1732441836846,-215.027274,0.00019452,2]
[343201561,1732441836855,-683.05,0.00019452,2]
[343201562,1732441836864,-1534.562321,0.00019452,2]
[343201563,1732441836874,-1534.562321,0.00019452,2]
[343201564,1732441836883,-215.027274,0.00019452,2]
[343201565,1732441836892,-215.027274,0.00019452,2]
[343201566,1732441836901,-500.0,0.00019452,2]
[343201567,1732441836911,-760.49,0.00019452,2]
[343201568,1732441836920,-500.0,0.00019452,2]
[343201569,1732441836930,-916.04,0.00019452,2]
[343201570,1732441836940,-151.0,0.00019452,2]
[343201571,1732441836951,-151.0,0.00019452,2]
[343201572,1732441836960,-151.0,0.00019452,2]
[343201573,1732441836970,-151.0,0.00019452,2]
[343201574,1732441836981,-201.863933,0.00019452,2]
[343201575,1732441836994,-201.863933,0.00019452,2]
[343201576,1732441837004,-500.0,0.00019452,2]
[343201577,1732441837013,-201.863933,0.00019452,2]
[343201578,1732441837023,-201.863933,0.00019452,2]
[343201579,1732441837034,-168.059652,0.00019452,2]
[343201580,1732441837044,-666.7,0.00019452,2]
[343201581,1732441837053,-500.0,0.00019452,2]
[343201582,1732441837067,-1295.3,0.00019452,2]
[343201583,1732441837076,-500.0,0.00019452,2]
[343201584,1732441837086,-1101.151481,0.00019452,2]
[343201585,1732441837096,-2534.40625,0.00019452,2]
[343201586,1732441837105,-1101.151481,0.00019452,2]
[343201587,1732441837115,-2534.40625,0.00019452,2]
[343201588,1732441837125,-500.0,0.00019452,2]
[343201589,1732441837135,-2534.40625,0.00019452,2]
[343201590,1732441837145,-1101.151481,0.00019452,2]
[343201591,1732441837155,-2534.40625,0.00019452,2]
[343201592,1732441837164,-1101.151481,0.00019452,2]
[343201593,1732441837174,-2063.86,0.00019452,2]
[343201594,1732441837183,-500.0,0.00019452,2]
[343201595,1732441837193,-151.0,0.00019452,2]
[343201596,1732441837203,-151.0,0.00019452,2]
[343201597,1732441837212,-812.07,0.00019452,2]
[343201598,1732441837223,-962.412136,0.00019452,2]
[343201599,1732441837233,-568.07,0.00019452,2]
[343201600,1732441837243,-962.412136,0.00019452,2]
[343201601,1732441837252,-500.0,0.00019452,2]
[343201602,1732441837263,-151.0,0.00019452,2]
[343201603,1732441837272,-151.0,0.00019452,2]
[343201604,1732441837282,-500.0,0.00019452,2]
[343201605,1732441837291,-962.412136,0.00019452,2]
[343201606,1732441837301,-962.412136,0.00019452,2]
[343201607,1732441837321,-151.0,0.00019452,2]
[343201608,1732441837339,-151.0,0.00019452,2]
[343201609,1732441837360,-1571.29,0.00019452,2]
[343201610,1732441837380,-503.87,0.00019452,2]
[343201611,1732441837399,-665.32,0.00019452,2]
[343201612,1732441837419,-374.406418,0.00019452,2]
[343201613,1732441837439,-374.406418,0.00019452,2]
[343201614,1732441837461,-500.0,0.00019452,2]
[343201615,1732441837481,-374.406418,0.00019452,2]
[343201616,1732441837503,-374.406418,0.00019452,2]
[343201617,1732441837527,-500.0,0.00019452,2]
[343201618,1732441837548,-500.0,0.00019452,2]
[343201619,1732441837573,-773.98,0.00019452,2]
[343201620,1732441837586,-500.0,0.00019452,2]
[343201621,1732441837595,-310.593546,0.00019452,2]
[343201622,1732441837605,-310.593546,0.00019452,2]
[343201623,1732441837614,-310.593546,0.00019452,2]
[343201624,1732441837624,-310.593546,0.00019452,2]
[343201625,1732441837634,-310.593546,0.00019452,2]
[343201626,1732441837643,-310.593546,0.00019452,2]
[343201627,1732441837652,-500.0,0.00019452,2]
[343201628,1732441837767,-500.0,0.00019452,2]
[343201629,1732441837777,-1232.21,0.00019452,2]
[343201630,1732441837787,-500.0,0.00019452,2]
[343201631,1732441837797,-4318.08981241,0.00019452,2]
[343201632,1732441837906,-2064.5055936,0.00019452,2]
[343201634,1732441837919,-466.0,0.00019452,2]
[343201635,1732441837931,-2938.01459399,0.00019452,2]
[343201636,1732441837940,-500.0,0.00019452,2]
[343201637,1732441837949,-1341.043763,0.00019452,2]
[343201638,1732441837959,-1341.043763,0.00019452,2]
[343201639,1732441837968,-1166.37,0.00019452,2]
[343201640,1732441837978,-168.166534,0.00019452,2]
[343201641,1732441837989,-168.166534,0.00019452,2]
[343201642,1732441838000,-168.166534,0.00019452,2]
[343201643,1732441838010,-1341.043763,0.00019452,2]
[343201644,1732441838019,-1341.043763,0.00019452,2]
[343201645,1732441838028,-500.0,0.00019452,2]
[343201646,1732441838038,-500.0,0.00019452,2]
[343201647,1732441838047,-168.166534,0.00019452,2]
[343201648,1732441838057,-168.166534,0.00019452,2]
[343201649,1732441838065,-168.166534,0.00019452,2]
[343201650,1732441838074,-2000.0,0.000195,2]
[343201651,1732441838082,-151.0,0.000196,2]
[343201652,1732441838091,-151.0,0.000196,2]
[343201653,1732441838101,-539.59299989,0.00019626,2]
[343201654,1732441838111,-1166.65291942,0.00019626,2]
[343201655,1732441838121,-666.0,0.00019626,2]
[343201656,1732441838131,-151.0,0.000197,2]
[343201657,1732441838141,-500.0,0.00019725,2]
[343201658,1732441838150,-151.0,0.00019726,2]
[343201659,1732441838160,-151.0,0.00019726,2]
[343201660,1732441838170,-617.86643581,0.00019726,2]
[343201661,1732441838180,-500.0,0.00019726,2]
[343201662,1732441838189,-500.0,0.00019726,2]
[343201663,1732441838199,-500.0,0.00019726,2]
[343201664,1732441838209,-500.0,0.00019726,2]
[343201665,1732441838219,-500.0,0.00019726,2]
[343201666,1732441838228,-283.647006,0.00019726,2]
[343201667,1732441838238,-189.134957,0.00019726,2]
[343201668,1732441838248,-189.134957,0.00019726,2]
[343201669,1732441838257,-189.134957,0.00019726,2]
[343201670,1732441838267,-189.134957,0.00019726,2]
[343201671,1732441838276,-151.0,0.00019726,2]
[343201672,1732441838286,-151.0,0.00019726,2]
[343201673,1732441838295,-151.0,0.00019726,2]
[343201674,1732441838305,-151.0,0.00019726,2]
[343201675,1732441838317,-500.0,0.00019726,2]
[343201676,1732441838331,-500.0,0.00019726,2]
[343201677,1732441838340,-170.456559,0.00019726,2]
[343201678,1732441838350,-170.456559,0.00019726,2]
[343201679,1732441838359,-170.456559,0.00019726,2]
[343201680,1732441838369,-170.456559,0.00019726,2]
[343201681,1732441838378,-500.0,0.00019726,2]
[343201682,1732441838388,-151.0,0.00019726,2]
[343201683,1732441838398,-151.0,0.00019726,2]
[343201684,1732441838407,-151.0,0.00019726,2]
[343201685,1732441838416,-151.0,0.00019726,2]
[343201686,1732441838426,-151.0,0.00019726,2]
[343201687,1732441838435,-151.0,0.00019726,2]
[343201688,1732441838444,-500.0,0.00019726,2]
[343201689,1732441838453,-500.0,0.00019726,2]
[343201690,1732441838463,-500.0,0.00019726,2]
[343201691,1732441838473,-500.0,0.00019726,2]
[343201692,1732441838482,-151.0,0.00019726,2]
[343201693,1732441838492,-151.0,0.00019726,2]
[343201694,1732441838501,-151.0,0.00019726,2]
[343201695,1732441838511,-235.544813,0.00019726,2]
[343201696,1732441838520,-151.0,0.00019726,2]
[343201697,1732441838530,-500.0,0.00019726,2]
[343201698,1732441838539,-235.530095,0.00019726,2]
[343201699,1732441838548,-500.0,0.00019726,2]
[343201700,1732441838559,-500.0,0.00019726,2]
[343201701,1732441838568,-500.0,0.00019726,2]
[343201702,1732441838578,-607.09,0.00019726,2]
[343201703,1732441838587,-1295.11,0.00019726,2]
[343201704,1732441838596,-169.448064,0.00019726,2]